bitfinex-derivatives/quotes_SOLF0:USTF0_20241024
["timestamp","ask_amount","ask_price","bid_price","bid_amount"]
[1729781557524,24.11847357,175.26,175.15,4.82]
[1729781558226,6.0355,175.28,175.16,24.11847357]
[1729781558931,6.0355,175.28,175.23,2.8551]
[1729781559231,6.0355,175.28,175.24,2.8549]
[1729781559632,6.0355,175.28,175.19,4.82]
[1729781559820,6.0355,175.28,175.2,4.82]
[1729781560024,6.0355,175.28,175.25,2.8547]
[1729781560229,1.2155,175.28,175.2,4.82]
[1729781561127,24.11847357,175.32,175.27,2.8545]
[1729781561435,2.5336,175.33,175.24,4.82]
[1729781561627,1.1609,175.34,175.25,4.82]
[1729781562128,1.1609,175.34,175.25,24.11847357]
[1729781562322,1.1609,175.34,175.29,2.8541]
[1729781562527,1.1609,175.34,175.23,1.9377]
[1729781563121,1.1609,175.34,175.25,24.11847357]
[1729781563320,6.044,175.37,175.26,4.82]
[1729781563628,4.82,175.37,175.33,2.8535]
[1729781563829,5.9965,175.4,175.28,24.11847357]
[1729781564233,1.1765,175.4,175.36,2.853]
[1729781564532,1.1765,175.4,175.31,4.82]
[1729781564743,1.1765,175.4,175.38,2.8527]
[1729781565036,1.1765,175.4,175.31,28.93847357]
[1729781565427,1.1765,175.4,175.35,2.8531]
[1729781565633,1.1765,175.4,175.31,4.82]
[1729781566031,5.9965,175.4,175.31,4.82]
[1729781566526,5.9965,175.4,175.36,2.853]
[1729781566731,5.9965,175.4,175.31,4.82]
[1729781566933,5.9965,175.4,175.33,2.8535]
[1729781567239,1.1765,175.4,175.31,28.93847357]
[1729781567841,1.1765,175.4,175.38,2.8526]
[1729781568141,1.1765,175.4,175.31,28.93847357]
[1729781568848,2.4915,175.43,175.31,28.93847357]
[1729781570741,2.4915,175.43,175.34,2.8533]
[1729781571044,2.4915,175.43,175.31,28.93847357]
[1729781573238,2.4915,175.43,175.38,2.8526]
[1729781573435,2.4915,175.43,175.31,28.93847357]
[1729781574148,6.0748,175.46,175.34,24.11847357]
[1729781574349,6.0748,175.46,175.41,2.8521]
[1729781574536,1.1748,175.46,175.37,24.11847357]
[1729781574843,1.1748,175.46,175.45,2.8516]
[1729781575039,1.1748,175.46,175.37,24.11847357]
[1729781575534,1.1748,175.46,175.44,2.8517]
[1729781576534,1.1748,175.46,175.37,24.11847357]
[1729781576735,1.1748,175.46,175.41,2.8522]
[1729781577046,1.1748,175.46,175.36,4.9]
[1729781577243,1.1748,175.46,175.42,2.852]
[1729781577445,1.1748,175.46,175.36,4.9]
[1729781577741,1.1748,175.46,175.35,4.9]
[1729781578344,1.1748,175.46,175.4,2.8523]
[1729781580850,1.1748,175.46,175.35,4.9]
[1729781581044,1.1748,175.46,175.4,2.8523]
[1729781581245,1.1748,175.46,175.35,4.9]
[1729781581850,1.1748,175.46,175.37,24.11847357]
[1729781582651,1.1748,175.46,175.44,2.8518]
[1729781583153,4.9,175.5,175.46,2.8514]
[1729781583359,4.9,175.5,175.36,5.7061]
[1729781583360,4.9,175.5,175.4,21.86987357]
[1729781584050,4.9,175.5,175.4,4.9]
[1729781584439,29.01847357,175.5,175.38,4.9]
[1729781584640,29.01847357,175.5,175.42,2.852]
[1729781584846,29.01847357,175.5,175.37,4.9]
[1729781585446,29.01847357,175.5,175.43,2.8518]
[1729781586047,29.01847357,175.5,175.38,4.9]
[1729781587356,29.01847357,175.5,175.43,2.8519]
[1729781588351,24.11847357,175.47,175.4,2.8523]
[1729781588547,24.11847357,175.44,175.32,1.9371]
[1729781588744,2.4582,175.43,175.33,4.9]
[1729781589250,2.4582,175.43,175.32,26.05557357]
[1729781589457,2.4582,175.43,175.41,2.8522]
[1729781589655,2.4582,175.43,175.34,5.7068]
[1729781589855,24.11847357,175.5,175.43,2.8518]
[1729781590069,4.9,175.49,175.38,4.9]
[1729781590751,4.9,175.49,175.43,2.8518]
[1729781591056,2.3766,175.5,175.4,24.11847357]
[1729781591353,2.3766,175.5,175.49,2.851]
[1729781591354,1.1944,175.5,175.49,2.851]
[1729781591744,4.9,175.53,175.44,4.9]
[1729781591948,2.91257449,175.56,175.44,4.9]
[1729781592151,4.9,175.55,175.44,4.9]
[1729781593057,1.1944,175.6,175.45,24.11847357]
[1729781593249,4.9,175.59,175.45,24.11847357]
[1729781593564,2.85,175.56,175.52,2.8504]
[1729781593753,7.7663123,175.59,175.45,24.11847357]
[1729781594759,4.9,175.59,175.45,24.11847357]
[1729781595254,2.8496,175.58,175.49,2.8509]
[1729781595445,2.8496,175.58,175.49,4.9]
[1729781595645,2.8496,175.58,175.49,29.01847357]
[1729781595951,2.8496,175.58,175.46,4.9]
[1729781595952,4.9,175.58,175.46,4.9]
[1729781596860,2.8505,175.52,175.46,4.9]
[1729781597045,4.9,175.58,175.46,4.9]
[1729781598352,2.8501,175.55,175.51,2.8505]
[1729781599958,2.8501,175.55,175.46,4.9]
[1729781600851,4.9,175.58,175.46,4.9]
[1729781601652,2.85,175.55,175.51,2.8505]
[1729781608463,5.14,175.57,175.51,2.8505]
[1729781609264,2.87058953,175.6,175.47,24.11847357]
[1729781609471,2.90431079,175.62,175.56,2.8498]
[1729781609771,2.8495,175.58,175.52,5.14]
[1729781609962,1.28,175.61,175.55,2.8499]
[1729781610359,2.8495,175.59,175.52,13.0440549]
[1729781610567,2.8495,175.59,175.51,5.14]
[1729781610759,15.0541549,175.6,175.51,15.0541549]
[1729781610964,2.8495,175.58,175.55,2.85]
[1729781611569,15.0541549,175.6,175.55,2.85]
[1729781611869,20.1941549,175.6,175.55,2.85]
[1729781612068,20.1941549,175.6,175.51,15.0541549]
[1729781612574,15.0541549,175.6,175.51,15.0541549]
[1729781613075,15.0541549,175.6,175.55,2.8499]
[1729781613372,15.0541549,175.6,175.51,15.0541549]
[1729781613565,15.0541549,175.6,175.55,2.8499]
[1729781614374,15.0541549,175.6,175.51,15.0541549]
[1729781615074,1.28,175.61,175.53,15.0541549]
[1729781615379,16.2489549,175.67,175.58,15.0541549]
[1729781615572,22.5371549,175.67,175.58,15.0541549]
[1729781615777,22.5371549,175.67,175.62,2.8488]
[1729781616180,22.5371549,175.67,175.59,2.8493]
[1729781616381,15.0541549,175.65,175.56,5.12]
[1729781616871,15.0541549,175.63,175.51,1.9318]
[1729781617076,15.0541549,175.61,175.52,5.12]
[1729781617868,15.0541549,175.61,175.49,15.0541549]
[1729781618075,15.0541549,175.56,175.48,5.12]
[1729781618379,24.10501622,175.58,175.48,5.12]
[1729781618581,24.10501622,175.58,175.52,2.8504]
[1729781618973,2.85,175.55,175.52,2.8504]
[1729781619483,2.85,175.55,175.51,2.8506]
[1729781620683,2.85,175.55,175.48,5.12]
[1729781621778,2.85,175.55,175.51,2.8506]
[1729781623178,29.22501622,175.54,175.4,24.10501622]
[1729781623382,29.22501622,175.54,175.42,5.12]
[1729781623580,2.8509,175.5,175.46,2.8513]
[1729781623775,2.8509,175.5,175.42,5.12]
[1729781623980,29.22501622,175.54,175.42,5.12]
[1729781624373,2.8505,175.52,175.48,2.851]
[1729781624784,5.12,175.54,175.43,24.10501622]
[1729781624978,7.9702,175.54,175.5,2.8507]
[1729781625287,5.12,175.54,175.43,24.10501622]
[1729781626175,7.9703,175.54,175.5,2.8507]
[1729781626578,24.10501622,175.57,175.43,24.10501622]
[1729781626783,26.95471622,175.57,175.44,5.04]
[1729781626990,24.10501622,175.57,175.44,5.04]
[1729781627780,24.10501622,175.57,175.54,2.85]
[1729781628084,24.10501622,175.57,175.44,5.04]
[1729781628586,2.8498,175.56,175.53,2.8502]
[1729781631189,2.8498,175.56,175.47,2.8512]
[1729781631391,2.8498,175.56,175.44,5.04]
[1729781631692,2.8498,175.56,175.52,2.8504]
[1729781631996,2.85,175.55,175.52,2.8504]
[1729781632888,24.10501622,175.57,175.52,2.8504]
[1729781633088,2.8499,175.56,175.52,2.8504]
[1729781634091,24.10501622,175.57,175.44,5.04]
[1729781634288,2.8501,175.55,175.44,5.04]
[1729781635088,2.8501,175.55,175.52,2.8504]
[1729781636699,2.8501,175.55,175.44,5.04]
[1729781636700,24.10501622,175.57,175.44,5.04]
[1729781636910,24.10501622,175.54,175.42,5.7041]
[1729781637207,2.8507,175.51,175.49,2.8509]
[1729781637898,2.8505,175.52,175.49,2.8509]
[1729781638097,24.10501622,175.54,175.45,2.8515]
[1729781638407,24.10501622,175.49,175.38,1.9293]
[1729781638598,29.14501622,175.49,175.43,2.8518]
[1729781638802,29.14501622,175.49,175.38,6.0946]
[1729781639701,29.14501622,175.49,175.38,5.04]
[1729781639904,24.10501622,175.46,175.38,5.04]
[1729781640104,2.8518,175.44,175.41,2.8522]
[1729781640407,15.0684011,175.44,175.35,5.04]
[1729781640609,2.852,175.43,175.37,2.8528]
[1729781640907,15.0684011,175.44,175.35,5.04]
[1729781641809,2.8521,175.42,175.39,2.8525]
[1729781642209,20.1084011,175.44,175.39,2.8525]
[1729781642405,2.852,175.43,175.39,2.8525]
[1729781643312,20.1084011,175.44,175.39,2.8525]
[1729781643513,15.0684011,175.41,175.37,2.8528]
[1729781643706,15.0684011,175.41,175.31,0.8747]
[1729781643911,2.8529,175.37,175.28,15.0684011]
[1729781644107,2.8529,175.37,175.34,2.8534]
[1729781644406,15.0684011,175.37,175.27,1.0566]
[1729781644608,15.0684011,175.34,175.31,2.8537]
[1729781645506,15.0684011,175.34,175.32,2.8537]
[1729781645915,15.0684011,175.34,175.27,5.04]
[1729781646209,2.8537,175.33,175.27,5.04]
[1729781646409,15.0684011,175.34,175.27,5.04]
[1729781647304,15.0684011,175.39,175.28,15.0684011]
[1729781647506,17.9211011,175.39,175.31,2.8538]
[1729781647814,15.0684011,175.39,175.28,15.0684011]
[1729781648213,2.8529,175.38,175.28,15.0684011]
[1729781648609,2.8529,175.38,175.34,2.8533]
[1729781649902,20.1084011,175.39,175.36,2.8531]
[1729781650510,6.2108,175.4,175.38,2.8528]
[1729781650811,6.2108,175.4,175.3,15.0684011]
[1729781651111,1.1708,175.4,175.37,2.8528]
[1729781651416,1.2843,175.41,175.32,5.04]
[1729781652707,1.2843,175.41,175.32,20.1084011]
[1729781653413,1.2843,175.41,175.39,2.8525]
[1729781654217,1.2843,175.41,175.32,18.0009011]
[1729781654919,1.2843,175.41,175.38,2.8526]
[1729781655714,15.0684011,175.4,175.25,5.7097]
[1729781656016,15.0684011,175.36,175.25,5.04]
[1729781656213,2.8536,175.33,175.3,2.8539]
[1729781656618,15.0684011,175.36,175.25,5.04]
[1729781656921,2.8535,175.34,175.3,2.8539]
[1729781657519,2.8536,175.33,175.25,4.86]
[1729781657917,2.8536,175.33,175.3,2.854]
[1729781658617,2.8535,175.34,175.28,2.8543]
[1729781658823,2.8535,175.34,175.25,4.86]
[1729781659416,2.8535,175.34,175.3,2.8539]
[1729781659721,2.8535,175.34,175.25,4.86]
[1729781660326,15.0684011,175.36,175.3,2.8539]
[1729781660924,16.2396011,175.36,175.3,2.8539]
[1729781661321,2.8536,175.34,175.31,2.8539]
[1729781661524,2.8536,175.34,175.25,4.86]
[1729781661919,16.2396011,175.36,175.3,2.8539]
[1729781662216,15.0684011,175.33,175.25,4.86]
[1729781662420,15.0684011,175.33,175.29,2.8541]
[1729781663025,15.0684011,175.33,175.24,4.86]
[1729781664226,17.9221011,175.33,175.3,2.854]
[1729781664727,17.9221011,175.33,175.22,13.8383011]
[1729781665022,2.8537,175.33,175.23,4.86]
[1729781665328,15.0684011,175.31,175.23,4.86]
[1729781665730,15.0684011,175.31,175.29,2.8541]
[1729781666027,15.0684011,175.31,175.23,4.86]
[1729781666222,15.0684011,175.31,175.27,2.8544]
[1729781666426,15.0684011,175.31,175.23,4.86]
[1729781666627,15.0684011,175.29,175.2,61.56]
[1729781666824,15.0684011,175.29,175.21,4.86]
[1729781667129,15.0684011,175.31,175.21,4.86]
[1729781668327,15.0684011,175.31,175.29,2.8542]
[1729781668532,17.9224011,175.31,175.21,4.86]
[1729781668827,19.9284011,175.34,175.22,15.0684011]
[1729781669048,19.9284011,175.34,175.31,2.8538]
[1729781669325,1.1712,175.36,175.27,15.0684011]
[1729781669534,2.3584,175.37,175.31,2.8538]
[1729781669831,23.9458011,175.41,175.29,15.0684011]
[1729781670023,1.1651,175.41,175.39,2.8525]
[1729781670226,166.18542699,175.42,175.33,4.86]
[1729781670625,166.18542699,175.42,175.41,2.8523]
[1729781671230,169.03752699,175.42,175.34,4.86]
[1729781672230,169.03752699,175.42,175.39,2.8525]
[1729781672834,166.18542699,175.42,175.39,2.8525]
[1729781673035,166.18542699,175.42,175.34,4.86]
[1729781673231,1.1877,175.43,175.42,2.8521]
[1729781673536,4.86,175.46,175.42,2.8521]
[1729781673730,15.0684011,175.43,175.34,4.86]
[1729781673930,2.8522,175.42,175.34,4.86]
[1729781674129,15.0684011,175.4,175.29,15.0684011]
[1729781674331,15.0684011,175.4,175.3,4.86]
[1729781674633,15.0684011,175.38,175.27,4.86]
[1729781674832,4.86,175.41,175.33,2.8535]
[1729781674833,15.0684011,175.35,175.33,2.8535]
[1729781675736,1.186,175.37,175.36,2.8531]
[1729781676133,2.4253,175.39,175.32,2.8537]
[1729781676335,2.4253,175.39,175.29,5.0684011]
[1729781676532,1.1885,175.39,175.29,5.0684011]
[1729781677034,1.1885,175.39,175.36,2.8529]
[1729781677228,1.1885,175.39,175.29,5.0684011]
[1729781678038,1.1885,175.39,175.37,2.8528]
[1729781678242,1.1885,175.39,175.29,5.0684011]
[1729781680140,15.0684011,175.41,175.39,2.8526]
[1729781680536,15.0684011,175.41,175.32,4.86]
[1729781680829,17.9207011,175.41,175.38,2.8527]
[1729781681546,15.0684011,175.41,175.38,2.8527]
[1729781681839,15.0684011,175.43,175.32,4.86]
[1729781682036,15.0684011,175.41,175.32,4.86]
[1729781682337,15.0684011,175.41,175.36,2.8531]
[1729781682934,15.0684011,175.37,175.26,1.2124]
[1729781683144,15.0684011,175.37,175.27,4.86]
[1729781683344,17.9214011,175.37,175.27,4.86]
[1729781683640,17.9214011,175.37,175.33,2.8534]
[1729781684042,2.8532,175.36,175.26,1.2124]
[1729781684234,15.0684011,175.37,175.32,2.8537]
[1729781684945,2.8531,175.36,175.32,2.8537]
[1729781685243,15.0684011,175.37,175.3,2.8541]
[1729781685444,17.9215011,175.37,175.27,4.86]
[1729781685644,15.0684011,175.37,175.27,4.86]
[1729781685851,15.0684011,175.37,175.3,2.8541]
[1729781686035,2.8531,175.36,175.27,4.86]
[1729781686349,2.8531,175.36,175.29,2.8541]
[1729781686647,2.8531,175.36,175.27,4.86]
[1729781687349,5.2966,175.38,175.27,4.86]
[1729781687548,15.0684011,175.37,175.27,4.86]
[1729781688249,17.9213011,175.37,175.35,2.8532]
[1729781688448,1.1999,175.38,175.27,19.9284011]
[1729781688844,16.3070011,175.4,175.29,15.0684011]
[1729781689143,16.3070011,175.4,175.28,5.7088]
[1729781689350,16.3070011,175.4,175.28,20.7772011]
[1729781689552,19.1596011,175.4,175.37,2.8528]
[1729781689748,19.1596011,175.4,175.32,4.8]
[1729781690048,19.1596011,175.4,175.37,2.8528]
[1729781690550,16.3070011,175.4,175.32,4.8]
[1729781690747,15.0684011,175.42,175.32,4.8]
[1729781690950,15.0684011,175.42,175.33,15.0684011]
[1729781691151,15.0684011,175.42,175.35,2.8531]
[1729781691349,15.0684011,175.42,175.33,15.0684011]
[1729781692050,15.0684011,175.42,175.39,2.8525]
[1729781692745,1.1696,175.45,175.36,4.8]
[1729781693053,1.1696,175.45,175.36,19.8684011]
[1729781693349,21.1200011,175.47,175.36,19.8684011]
[1729781693350,16.3200011,175.47,175.36,19.8684011]
[1729781693849,16.3200011,175.47,175.44,2.8516]
[1729781694043,16.3200011,175.47,175.4,4.8]
[1729781694251,1.2516,175.47,175.4,4.8]
[1729781695049,1.2516,175.47,175.45,2.8515]
[1729781696161,1.2516,175.47,175.4,4.8]
[1729781696461,15.0684011,175.5,175.4,4.8]
[1729781696755,10.0398,175.51,175.41,15.0684011]
[1729781696949,2.3891,175.51,175.41,15.0684011]
[1729781697355,2.3891,175.51,175.48,2.851]
[1729781697554,2.3891,175.51,175.41,15.0684011]
[1729781698752,2.8509,175.5,175.46,2.8513]
[1729781698952,2.8509,175.5,175.41,15.0684011]
[1729781700154,2.3891,175.51,175.47,2.8512]
[1729781700364,2.3891,175.51,175.41,15.0684011]
[1729781700856,5.2397,175.51,175.48,2.8511]
[1729781701450,5.2397,175.51,175.41,15.0684011]
[1729781701451,2.3891,175.51,175.41,15.0684011]
[1729781702255,1.2017,175.51,175.43,15.0684011]
[1729781702461,21.0510011,175.57,175.45,15.0684011]
[1729781702657,2.85,175.55,175.52,2.8504]
[1729781702955,1.1826,175.57,175.48,15.0684011]
[1729781703261,1.1826,175.57,175.46,4.8]
[1729781703262,2.499,175.6,175.5,15.0684011]
[1729781703457,2.499,175.6,175.51,4.8]
[1729781703850,2.499,175.6,175.52,15.0684011]
[1729781704357,1.1826,175.63,175.51,4.8]
[1729781704358,1.1826,175.63,175.54,15.0684011]
[1729781704559,1.1826,175.63,175.55,4.8]
[1729781705262,4.0313,175.63,175.6,2.8492]
[1729781705563,15.0684011,175.61,175.52,4.8]
[1729781705759,1.2099,175.6,175.52,4.8]
[1729781706059,15.0684011,175.58,175.52,4.8]
[1729781706264,1.1855,175.57,175.49,4.8]
[1729781706668,15.0684011,175.54,175.46,343.0]
[1729781706858,15.0684011,175.54,175.48,4.8]
[1729781707063,2.8504,175.53,175.49,2.851]
[1729781707364,2.8504,175.53,175.47,4.8]
[1729781707553,2.8504,175.53,175.49,2.8509]
[1729781707761,15.0684011,175.54,175.46,4.8]
[1729781708064,17.9186011,175.54,175.46,4.8]
[1729781708266,15.0684011,175.54,175.5,2.8507]
[1729781708464,1.2322,175.55,175.5,2.8507]
[1729781708766,2.8504,175.53,175.5,2.8507]
[1729781708963,1.2322,175.55,175.46,4.8]
[1729781709268,2.8508,175.5,175.43,4.8]
[1729781709465,2.8508,175.5,175.38,24.08120549]
[1729781709466,24.08120549,175.53,175.38,25.31810549]
[1729781709663,5.9728,175.52,175.44,2.8516]
[1729781709854,2.8511,175.49,175.39,4.8]
[1729781710171,2.8511,175.49,175.45,2.8516]
[1729781710354,2.8508,175.51,175.39,4.8]
[1729781710559,5.9728,175.52,175.39,4.8]
[1729781711062,4.0233,175.52,175.41,24.08120549]
[1729781711473,1.2322,175.55,175.51,2.8505]
[1729781711665,1.2322,175.55,175.46,4.8]
[1729781712567,2.8506,175.52,175.48,2.851]
[1729781712766,2.8506,175.52,175.46,4.8]
[1729781713256,2.8504,175.53,175.49,2.8509]
[1729781714167,1.2322,175.55,175.46,4.8]
[1729781714368,2.8506,175.52,175.48,2.851]
[1729781714568,2.8506,175.52,175.46,4.8]
[1729781714760,1.2322,175.55,175.47,2.8512]
[1729781714962,1.2322,175.55,175.43,4.8]
[1729781716068,2.851,175.49,175.43,4.8]
[1729781717170,24.08120549,175.46,175.29,5.7083]
[1729781717358,1.2601,175.45,175.3,30.75151779]
[1729781717667,4.7,175.44,175.3,29.70320549]
[1729781718068,2.8525,175.4,175.37,2.8529]
[1729781718368,2.8525,175.4,175.3,29.70320549]
[1729781718569,2.8525,175.4,175.36,2.853]
[1729781718762,2.8525,175.4,175.32,4.7]
[1729781719272,24.08120549,175.43,175.32,4.7]
[1729781719466,2.8529,175.38,175.32,4.7]
[1729781720368,4.7,175.4,175.32,4.7]
[1729781720563,2.8526,175.39,175.32,4.7]
[1729781721073,2.8526,175.39,175.34,2.8534]
[1729781721368,2.8526,175.39,175.32,4.7]
[1729781721570,4.7,175.4,175.32,4.7]
[1729781721966,1.2601,175.45,175.33,24.08120549]
[1729781721967,5.9601,175.45,175.33,24.08120549]
[1729781722170,8.8119,175.45,175.4,2.8523]
[1729781722371,5.9601,175.45,175.4,2.8523]
[1729781722674,2.8519,175.44,175.4,2.8523]
[1729781723171,10.007,175.48,175.36,28.78120549]
[1729781723375,7.1557,175.48,175.36,28.78120549]
[1729781723766,2.8515,175.46,175.43,2.8518]
[1729781724767,7.1557,175.48,175.36,28.78120549]
[1729781724979,1.2826,175.55,175.42,24.08120549]
[1729781725276,1.2618,175.54,175.43,4.7]
[1729781725460,4.1121,175.54,175.43,4.7]
[1729781725877,1.2618,175.54,175.43,4.7]
[1729781726075,4.112,175.54,175.49,2.8509]
[1729781728070,1.1618,175.56,175.43,4.7]
[1729781728366,4.0117,175.56,175.52,2.8505]
[1729781728567,2.5102,175.58,175.47,4.7]
[1729781728774,2.5102,175.58,175.53,2.8503]
[1729781728775,2.8498,175.57,175.53,2.8503]
[1729781729075,2.5102,175.58,175.47,4.7]
[1729781729276,2.8499,175.56,175.52,2.8504]
[1729781729480,1.2832,175.58,175.48,24.08120549]
[1729781729785,1.2257,175.62,175.51,24.08120549]
[1729781729975,4.7,175.61,175.52,4.7]
[1729781730674,2.8492,175.6,175.52,4.7]
[1729781731077,4.7,175.61,175.48,24.08120549]
[1729781731279,28.78120549,175.61,175.48,24.08120549]
[1729781731475,28.78120549,175.61,175.49,4.7]
[1729781731778,2.8496,175.58,175.51,2.8505]
[1729781731979,28.78120549,175.61,175.51,2.8505]
[1729781732281,28.78120549,175.61,175.48,4.7]
[1729781732481,2.8501,175.55,175.51,2.8506]
[1729781733576,28.78120549,175.61,175.45,24.08120549]
[1729781733780,2.8501,175.55,175.48,2.8511]
[1729781734080,4.7,175.56,175.48,2.8511]
[1729781734881,2.8506,175.52,175.48,2.8511]
[1729781735884,2.8506,175.52,175.46,4.7]
[1729781736180,4.7,175.59,175.46,4.7]
[1729781736380,4.7,175.59,175.48,24.08120549]
[1729781736583,2.8497,175.58,175.48,24.08120549]
[1729781736786,4.7,175.59,175.48,24.08120549]
[1729781737386,2.8498,175.57,175.53,2.8502]
[1729781737577,4.7,175.59,175.5,4.7]
[1729781737779,4.7,175.59,175.5,2.8507]
[1729781737974,4.7,175.59,175.48,4.7]
[1729781738178,2.8505,175.53,175.5,2.8508]
[1729781738782,2.8505,175.53,175.48,4.7]
[1729781738984,2.8505,175.53,175.51,2.8506]
[1729781739473,4.7,175.59,175.48,4.7]
[1729781739675,2.8499,175.56,175.53,2.8503]
[1729781740078,2.8497,175.57,175.53,2.8502]
[1729781740682,2.8498,175.56,175.5,4.7]
[1729781740881,4.7,175.61,175.5,4.7]
[1729781740882,28.78120549,175.61,175.5,4.7]
[1729781741186,28.78120549,175.61,175.46,24.08120549]
[1729781741493,2.8503,175.53,175.47,4.7]
[1729781741983,2.8505,175.52,175.46,24.08120549]
[1729781742287,2.8505,175.52,175.46,4.7]
[1729781742491,2.8505,175.52,175.48,2.851]
[1729781742690,2.8505,175.52,175.46,4.7]
[1729781743082,2.8505,175.52,175.46,2.8514]
[1729781743283,2.8505,175.52,175.46,4.7]
[1729781743892,2.8505,175.52,175.47,2.8512]
[1729781744078,2.8505,175.52,175.46,4.7]
[1729781744485,2.8505,175.52,175.48,2.851]
[1729781745190,2.8505,175.52,175.46,4.7]
[1729781745191,2.8505,175.52,175.49,2.8509]
[1729781745403,2.8504,175.53,175.46,4.7]
[1729781745584,1.2119,175.56,175.46,4.7]
[1729781745983,2.8505,175.52,175.49,2.8508]
[1729781747289,1.2119,175.56,175.47,2.8513]
[1729781747290,2.8508,175.5,175.47,2.8513]
[1729781747591,1.2119,175.56,175.45,4.86]
[1729781747986,2.8504,175.53,175.48,2.851]
[1729781748189,1.2119,175.56,175.48,2.851]
[1729781748891,24.08120549,175.55,175.43,24.08120549]
[1729781749085,24.08120549,175.55,175.38,5.7053]
[1729781749086,24.08120549,175.55,175.44,4.86]
[1729781749290,2.4382,175.54,175.44,4.86]
[1729781749492,2.851,175.49,175.44,4.86]
[1729781749693,2.851,175.49,175.46,2.8513]
[1729781750004,2.8511,175.49,175.46,2.8513]
[1729781750397,4.86,175.52,175.45,2.8516]
[1729781750595,2.8513,175.48,175.45,2.8516]
[1729781750991,4.86,175.52,175.43,4.86]
[1729781751198,2.4382,175.54,175.43,28.94120549]
[1729781751695,2.4382,175.54,175.45,24.08120549]
[1729781752303,5.2885,175.54,175.51,2.8505]
[1729781753495,2.4382,175.54,175.52,2.8504]
[1729781754002,2.8501,175.55,175.52,2.8504]
[1729781754297,0.3719,175.58,175.37,61.56]
[1729781754500,4.86,175.57,175.46,24.08120549]
[1729781754804,4.86,175.57,175.46,18.94120549]
[1729781755502,22.94120549,175.6,175.46,18.94120549]
[1729781755703,4.86,175.59,175.46,18.94120549]
[1729781755903,2.8499,175.56,175.53,2.8502]
[1729781756408,2.8497,175.57,175.54,2.85]
[1729781756702,4.86,175.6,175.48,24.08120549]
[1729781757004,2.85,175.56,175.53,2.8502]
[1729781757204,26.86122007,175.63,175.48,24.08120549]
[1729781757396,2.8498,175.57,175.54,2.8501]
[1729781757603,4.86,175.6,175.48,24.08120549]
[1729781758004,2.8493,175.6,175.56,2.8497]
[1729781758208,4.86,175.62,175.56,2.8497]
[1729781759008,2.8494,175.59,175.56,2.8497]
[1729781759502,4.86,175.62,175.52,4.86]
[1729781759805,2.8497,175.57,175.52,4.86]
[1729781759996,4.86,175.62,175.52,4.86]
[1729781760416,2.8496,175.58,175.55,2.8499]
[1729781762901,2.8486,175.64,175.61,2.8489]
[1729781763216,4.86,175.68,175.57,4.86]
[1729781763510,2.8488,175.63,175.57,4.86]
[1729781764106,2.8485,175.65,175.62,2.8488]
[1729781765504,2.8485,175.65,175.59,2.8493]
[1729781765710,2.8485,175.65,175.57,4.86]
[1729781766210,2.5362,175.7,175.59,24.08120549]
[1729781766413,4.86,175.71,175.57,4.86]
[1729781766414,4.86,175.71,175.61,24.08120549]
[1729781766613,4.86,175.71,175.62,4.86]
[1729781766815,2.8475,175.71,175.67,2.8479]
[1729781767009,1.2791,175.72,175.62,4.86]
[1729781767405,2.8474,175.71,175.68,2.8478]
[1729781767802,1.2791,175.72,175.62,4.86]
[1729781768008,2.8476,175.7,175.67,2.8479]